bitfinex/quotes_BTCUSD_20240729
["timestamp","ask_amount","ask_price","bid_price","bid_amount"]
[1722249504234,1.0957229,69826.0,69825.0,0.29043]
[1722249504591,1.0957229,69826.0,69825.0,0.28643]
[1722249504592,1.16160647,69826.0,69825.0,0.28643]
[1722249504730,1.0957229,69826.0,69825.0,0.28643]
[1722249504924,1.27462233,69826.0,69825.0,0.28643]
[1722249505126,1.16005233,69826.0,69825.0,0.28643]
[1722249505327,1.27462233,69826.0,69825.0,0.30043]
[1722249505527,1.0957229,69826.0,69825.0,0.30043]
[1722249506246,1.13859459,69826.0,69825.0,0.30043]
[1722249506651,1.0957229,69826.0,69825.0,0.30043]
[1722249508061,1.2102929,69826.0,69825.0,0.301354]
[1722249508464,1.33741923,69826.0,69825.0,0.301354]
[1722249508666,1.60940875,69826.0,69825.0,0.301354]
[1722249508913,1.76070875,69826.0,69825.0,0.287354]
[1722249509240,1.71786023,69826.0,69825.0,0.287354]
[1722249509446,1.94700123,69826.0,69825.0,0.287354]
[1722249509837,1.71786023,69826.0,69825.0,0.287354]
[1722249509971,1.76068849,69826.0,69825.0,0.287354]
[1722249510165,1.71786023,69826.0,69825.0,0.287354]
[1722249510369,1.5907339,69826.0,69825.0,0.287354]
[1722249510941,1.3615929,69826.0,69825.0,0.287354]
[1722249511545,1.3625929,69826.0,69825.0,0.287354]
[1722249511723,1.5917339,69826.0,69825.0,0.287354]
[1722249511919,1.8708749,69826.0,69825.0,0.287354]
[1722249512500,1.99170515,69826.0,69825.0,0.287354]
[1722249512912,2.03451958,69826.0,69825.0,0.287354]
[1722249513171,1.99170515,69826.0,69825.0,0.287354]
[1722249513693,1.94170515,69826.0,69825.0,0.287354]
[1722249513893,1.99170515,69826.0,69825.0,0.287354]
[1722249514235,2.1000159,69826.0,69825.0,0.263354]
[1722249514440,1.8708749,69826.0,69825.0,0.263354]
[1722249516267,1.88698961,69826.0,69825.0,0.263354]
[1722249520822,1.65784861,69826.0,69825.0,0.263354]
[1722249521523,1.26413761,69826.0,69825.0,0.263354]
[1722249521750,1.37870761,69826.0,69825.0,0.263354]
[1722249522022,1.571807,69826.0,69825.0,0.263354]
[1722249522281,1.750948,69826.0,69825.0,0.263354]
[1722249522424,1.800948,69826.0,69825.0,0.263354]
[1722249522791,1.571807,69826.0,69825.0,0.263354]
[1722249522987,1.521807,69826.0,69825.0,0.263354]
[1722249523247,1.571807,69826.0,69825.0,0.263354]
[1722249524420,1.42870761,69826.0,69825.0,0.263354]
[1722249525733,1.65784861,69826.0,69825.0,0.263354]
[1722249527293,1.88698961,69826.0,69825.0,0.263354]
[1722249527493,1.65784861,69826.0,69825.0,0.263354]
[1722249528300,1.88698961,69826.0,69825.0,0.263354]
[1722249528461,2.030089,69826.0,69825.0,0.263354]
[1722249528863,2.080089,69826.0,69825.0,0.263354]
[1722249529082,2.130089,69826.0,69825.0,0.263354]
[1722249529284,2.35923,69826.0,69825.0,0.263354]
[1722249530384,2.080089,69826.0,69825.0,0.263354]
[1722249530585,2.130089,69826.0,69825.0,0.263354]
[1722249530954,2.10761153,69826.0,69825.0,0.263354]
[1722249532397,1.81567053,69826.0,69825.0,0.263354]
[1722249532584,1.97869682,69826.0,69825.0,0.263354]
[1722249532786,1.99989436,69826.0,69825.0,0.263354]
[1722249532954,2.04989436,69826.0,69825.0,0.263354]
[1722249533159,2.02869682,69826.0,69825.0,0.263354]
[1722249533392,2.04989436,69826.0,69825.0,0.263354]
[1722249533789,2.02869682,69826.0,69825.0,0.263354]
[1722249534061,1.97869682,69826.0,69825.0,0.263354]
[1722249534263,1.99967456,69826.0,69825.0,0.263354]
[1722249534506,2.07215786,69826.0,69825.0,0.263354]
[1722249534668,2.11355064,69826.0,69825.0,0.263354]
[1722249535709,2.177783,69826.0,69825.0,0.263354]
[1722249535888,2.11355064,69826.0,69825.0,0.263354]
[1722249536530,2.19919379,69826.0,69825.0,0.263354]
[1722249537199,2.1991029,69826.0,69825.0,0.263354]
[1722249537584,2.22053334,69826.0,69825.0,0.263354]
[1722249538924,2.11338115,69826.0,69825.0,0.263354]
[1722249539370,2.0425729,69826.0,69825.0,0.263354]
[1722249539577,2.02198842,69826.0,69825.0,0.263354]
[1722249539749,2.07198842,69826.0,69825.0,0.263354]
[1722249539962,2.07198822,69826.0,69825.0,0.263354]
[1722249540560,2.2007578,69826.0,69825.0,0.263354]
[1722249540939,2.20084485,69826.0,69825.0,0.263354]
[1722249541339,2.20084489,69826.0,69825.0,0.263354]
[1722249541539,2.21602758,69826.0,69825.0,0.263354]
[1722249541743,2.08717095,69826.0,69825.0,0.263354]
[1722249542402,2.08717091,69826.0,69825.0,0.263354]
[1722249543169,2.06636281,69826.0,69825.0,0.263354]
[1722249543364,2.087171,69826.0,69825.0,0.263354]
[1722249544427,2.44526027,69826.0,69825.0,0.239354]
[1722249544683,2.416312,69826.0,69825.0,0.239354]
[1722249545639,2.41631399,69826.0,69825.0,0.239354]
[1722249545845,2.34550381,69826.0,69825.0,0.239354]
[1722249546052,2.39550381,69826.0,69825.0,0.239354]
[1722249547528,2.37302051,69826.0,69825.0,0.239354]
[1722249549644,2.14387951,69826.0,69825.0,0.239354]
[1722249550045,2.37302051,69826.0,69825.0,0.239354]
[1722249550870,2.39550466,69826.0,69825.0,0.239354]
[1722249551285,2.37302051,69826.0,69825.0,0.239354]
[1722249552419,2.32302051,69826.0,69825.0,0.239354]
[1722249552624,2.37302051,69826.0,69825.0,0.239354]
[1722249553326,1.53843912,69826.0,69825.0,0.239354]
[1722249553888,1.81758012,69826.0,69825.0,0.239354]
[1722249554326,1.84006423,69826.0,69825.0,0.239354]
[1722249554683,1.61092323,69826.0,69825.0,0.239354]
[1722249554937,1.81758012,69826.0,69825.0,0.238254]
[1722249555299,0.001,69817.0,69816.0,0.000924]
[1722249555499,0.18955059,69817.0,69816.0,0.000924]
[1722249555638,0.21255059,69817.0,69816.0,0.000924]
[1722249556075,0.05,69816.0,69798.0,0.41574605]
[1722249556394,0.0828,69799.0,69798.0,0.41574605]
[1722249556551,0.001,69798.0,69796.0,0.057435]
[1722249556751,0.001,69798.0,69795.0,0.01609822]
[1722249556994,0.0838,69796.0,69787.0,0.049]
[1722249557199,0.0828,69789.0,69788.0,0.114632]
[1722249557649,0.0828,69789.0,69788.0,0.214632]
[1722249557834,0.0828,69789.0,69788.0,0.213032]
[1722249558013,0.0828,69789.0,69788.0,0.275132]
[1722249558211,0.10528798,69789.0,69788.0,0.352132]
[1722249558412,0.10528798,69789.0,69788.0,0.2391]
[1722249559118,0.10528798,69789.0,69788.0,0.2531]
[1722249559279,0.04302995,69804.0,69795.0,0.0621]
[1722249559484,0.0838,69811.0,69806.0,0.077]
[1722249559684,0.0015542,69810.0,69809.0,0.0621]
[1722249559911,0.001,69811.0,69810.0,0.077]
[1722249559912,0.0838,69811.0,69810.0,0.077]
[1722249560123,0.0838,69811.0,69810.0,0.1391]
[1722249560443,0.001,69814.0,69802.0,0.0828]
[1722249560645,0.001,69814.0,69805.0,0.1422]
[1722249560822,0.001,69811.0,69805.0,0.1422]
[1722249561000,0.001,69811.0,69804.0,0.114606]
[1722249561001,0.001,69811.0,69804.0,0.1485]
[1722249561190,0.001,69811.0,69806.0,0.0653]
[1722249561393,0.001,69811.0,69810.0,0.1625]
[1722249561903,0.001,69817.0,69810.0,0.014]
[1722249562102,0.001,69817.0,69812.0,0.1495]
[1722249562310,0.001,69817.0,69813.0,0.0773]
[1722249562509,0.001,69817.0,69810.0,0.014]
[1722249562510,0.001,69817.0,69815.0,0.0773]
[1722249562737,0.001,69817.0,69816.0,0.1387]
[1722249563538,0.02348294,69817.0,69816.0,0.1387]
[1722249563748,0.024,69817.0,69816.0,0.1387]
[1722249564725,0.001,69817.0,69816.0,0.1387]
[1722249564927,0.05694334,69817.0,69816.0,0.1387]
[1722249565132,0.07994334,69817.0,69816.0,0.1387]
[1722249565987,0.07994334,69817.0,69816.0,0.1487]
[1722249565988,0.16274334,69817.0,69816.0,0.1487]
[1722249566809,0.16274334,69817.0,69816.0,0.1567]
[1722249570890,0.18522654,69817.0,69816.0,0.1567]
[1722249571225,0.16274334,69817.0,69816.0,0.1567]
[1722249571428,0.18522654,69817.0,69816.0,0.1567]
[1722249571633,0.10242654,69817.0,69816.0,0.1567]
[1722249571852,0.024,69817.0,69816.0,0.1567]
[1722249572100,0.001,69817.0,69816.0,0.1567]
[1722249572361,0.024,69817.0,69816.0,0.1567]
[1722249572546,0.13969973,69817.0,69816.0,0.1567]
[1722249572748,0.16269973,69817.0,69816.0,0.1567]
[1722249573645,0.20569211,69817.0,69816.0,0.1567]
[1722249573866,0.16269973,69817.0,69816.0,0.1567]
[1722249574054,0.22717776,69817.0,69816.0,0.1567]
[1722249575004,0.25050115,69817.0,69816.0,0.1567]
[1722249575450,0.22801776,69817.0,69816.0,0.1567]
[1722249575836,0.08073973,69817.0,69816.0,0.1567]
[1722249578673,0.10322223,69817.0,69816.0,0.1567]
[1722249579827,0.08073973,69817.0,69816.0,0.1567]
[1722249580404,0.02484,69817.0,69816.0,0.1567]
[1722249581039,0.08075259,69817.0,69816.0,0.1567]
[1722249581410,0.02484,69817.0,69816.0,0.1567]
[1722249581933,0.05675756,69817.0,69816.0,0.729632]
[1722249582063,0.05675756,69817.0,69816.0,0.861432]
[1722249582064,0.00084,69817.0,69816.0,0.861432]
[1722249582457,0.00084,69817.0,69816.0,1.20966457]
[1722249583183,0.02332007,69817.0,69816.0,1.20966457]
[1722249583382,0.00084,69817.0,69816.0,1.20966457]
[1722249584443,0.00084,69817.0,69816.0,1.19966457]
[1722249584804,0.00084,69817.0,69816.0,1.20566457]
[1722249585120,0.00084,69817.0,69816.0,1.21966457]
[1722249585433,0.00084,69817.0,69816.0,1.100605]
[1722249585677,0.00084,69817.0,69816.0,1.21966295]
[1722249586137,0.00084,69817.0,69816.0,1.23500626]
[1722249586594,0.00084,69817.0,69816.0,1.15220626]
[1722249586815,0.02332007,69817.0,69816.0,1.15220626]
[1722249587020,0.02384,69817.0,69816.0,1.15220626]
[1722249587373,0.02384,69817.0,69816.0,1.15220818]
[1722249587590,0.02384,69817.0,69816.0,1.03314831]
[1722249588198,0.02384,69817.0,69816.0,1.15220807]
[1722249589856,0.04632017,69817.0,69816.0,1.15220807]
[1722249590390,0.02384,69817.0,69816.0,1.15220807]
[1722249590979,0.02384,69817.0,69816.0,1.23500807]
[1722249591325,0.02384,69817.0,69816.0,1.06694831]
[1722249591527,0.02384,69817.0,69816.0,1.18600809]
[1722249591732,0.02384,69817.0,69816.0,1.23500809]
[1722249591934,0.02384,69817.0,69816.0,1.18600809]
[1722249592132,0.02384,69817.0,69816.0,1.23500809]
[1722249592598,0.02384,69817.0,69816.0,1.11594831]
[1722249593014,0.02384,69817.0,69816.0,1.06694831]
[1722249593188,0.02384,69817.0,69816.0,1.11594831]
[1722249593391,0.02384,69817.0,69816.0,0.83777531]
[1722249593569,0.02384,69817.0,69816.0,0.52580231]
[1722249593767,0.04632024,69817.0,69816.0,0.52580231]
[1722249595090,0.04632024,69817.0,69816.0,0.75497531]
[1722249595091,0.02384,69817.0,69816.0,0.75497531]
[1722249596029,0.02384,69817.0,69816.0,0.52580231]
[1722249597116,0.02384,69817.0,69816.0,0.75497531]
[1722249598177,0.0463208,69817.0,69816.0,0.75497531]
[1722249599162,0.0463208,69817.0,69816.0,0.52580231]
[1722249599465,0.0463208,69817.0,69816.0,0.75497531]
[1722249599706,0.0463208,69817.0,69816.0,0.52580231]
[1722249600081,0.0463208,69817.0,69816.0,0.75497531]
[1722249600283,0.0463208,69817.0,69816.0,0.52580231]
[1722249600492,0.0463208,69817.0,69816.0,0.75497531]
[1722249600698,0.0463208,69817.0,69816.0,0.52580231]
[1722249601323,0.0463208,69817.0,69816.0,0.75497531]
[1722249601520,0.0463208,69817.0,69816.0,0.52580231]
[1722249603396,0.0463208,69817.0,69816.0,0.75497531]
[1722249606769,0.0463208,69817.0,69816.0,0.92304428]
[1722249606770,0.00084,69817.0,69816.0,0.92304428]
[1722249606964,0.00084,69817.0,69816.0,1.15221728]
[1722249607580,0.00084,69817.0,69816.0,1.13821728]
[1722249607989,0.00084,69817.0,69816.0,1.03314831]
[1722249608177,0.00084,69817.0,69816.0,1.15220228]
[1722249608583,0.00084,69817.0,69816.0,1.13820228]
[1722249609790,0.02331955,69817.0,69816.0,1.01914831]
[1722249610154,0.04631955,69817.0,69816.0,1.13820285]
[1722249610549,0.04631955,69817.0,69816.0,1.15220285]
[1722249610959,0.02384,69817.0,69816.0,1.15220285]
[1722249611905,0.02384,69817.0,69816.0,1.15220142]
[1722249612511,0.02384,69817.0,69816.0,1.13820142]
[1722249612712,0.02384,69817.0,69816.0,1.22100142]
[1722249613173,0.02384,69817.0,69816.0,1.22101109]
[1722249613372,0.02384,69817.0,69816.0,1.22100877]
[1722249613745,0.02384,69817.0,69816.0,1.10194831]
[1722249613992,0.02384,69817.0,69816.0,1.22101222]
[1722249614139,0.02384,69817.0,69816.0,1.23501222]
[1722249614140,0.04631991,69817.0,69816.0,1.23501222]
[1722249614541,0.02384,69817.0,69816.0,1.23501222]
[1722249615893,0.02384,69817.0,69816.0,1.23500721]
[1722249616304,0.02384,69817.0,69816.0,0.88677531]
[1722249616511,0.02384,69817.0,69816.0,1.00583433]
[1722249618297,0.02384,69817.0,69816.0,1.23500733]
[1722249619144,0.02384,69817.0,69816.0,1.00583433]
[1722249619511,0.04631991,69817.0,69816.0,1.23500734]
[1722249619712,0.04631991,69817.0,69816.0,1.00583434]
[1722249620840,0.04631991,69817.0,69816.0,1.23500734]
[1722249621073,0.04631991,69817.0,69816.0,1.00583434]
[1722249622682,0.04631991,69817.0,69816.0,0.95683434]
[1722249622862,0.04631991,69817.0,69816.0,1.00583492]
[1722249623469,0.04631991,69817.0,69816.0,1.0058348]
[1722249627177,0.04631991,69817.0,69816.0,1.5214778]
[1722249627381,0.02384,69817.0,69816.0,1.2923048]
[1722249627579,0.02384,69817.0,69816.0,1.5214778]
[1722249627797,0.02384,69817.0,69816.0,1.2923048]
[1722249628198,0.00084,69817.0,69816.0,1.2923048]
[1722249628866,0.00084,69817.0,69816.0,1.5214778]
[1722249629538,0.00084,69817.0,69816.0,1.29230391]
[1722249630411,0.02331967,69817.0,69816.0,1.29230391]
[1722249630615,0.04631967,69817.0,69816.0,1.10460391]
[1722249631429,0.04631967,69817.0,69816.0,1.41307691]
[1722249631833,0.04631967,69817.0,69816.0,1.18390391]
[1722249631834,0.02384,69817.0,69816.0,1.18390391]
[1722249632635,0.02384,69817.0,69816.0,1.06484531]
[1722249632883,0.02384,69817.0,69816.0,1.18390339]
[1722249633086,0.02384,69817.0,69816.0,1.10110339]
[1722249633546,0.02384,69817.0,69816.0,0.87193039]
[1722249634309,0.02384,69817.0,69816.0,0.79263039]
[1722249634510,0.02384,69817.0,69816.0,1.02180339]
[1722249634713,0.00084,69817.0,69816.0,1.02180339]
[1722249634910,0.02331984,69817.0,69816.0,1.02180339]
[1722249635112,0.04631984,69817.0,69816.0,1.02180339]
[1722249635459,0.02384,69817.0,69816.0,0.79263039]
[1722249635798,0.02384,69817.0,69816.0,0.79263585]
[1722249635999,0.02384,69817.0,69816.0,1.02180885]
[1722249636234,0.00084,69817.0,69816.0,1.02180885]
[1722249638058,0.00084,69817.0,69816.0,1.07080885]
[1722249638262,0.00084,69817.0,69816.0,1.20810885]
[1722249638838,0.00084,69817.0,69816.0,1.43728185]
[1722249638839,0.02331968,69817.0,69816.0,1.43728185]
[1722249639044,0.02331968,69817.0,69816.0,1.20810885]
[1722249639247,0.04631968,69817.0,69816.0,1.43727346]
[1722249639449,0.04631968,69817.0,69816.0,1.20810046]
[1722249640015,0.02384,69817.0,69816.0,1.20810046]
[1722249642129,0.02384,69817.0,69816.0,1.15910046]
[1722249642425,0.02384,69817.0,69816.0,1.04004531]
[1722249642628,0.02384,69817.0,69816.0,1.15910368]
[1722249643031,0.02384,69817.0,69816.0,1.15910407]
[1722249643190,0.04631977,69817.0,69816.0,1.15910407]
[1722249644813,0.02384,69817.0,69816.0,1.15910407]
[1722249645019,0.00084,69817.0,69816.0,1.15910601]
[1722249645220,0.02384,69817.0,69816.0,1.15910601]
[1722249645660,0.02384,69817.0,69816.0,1.15910505]
[1722249646001,0.00084,69817.0,69816.0,1.15910505]
[1722249648039,0.02331961,69817.0,69816.0,1.15910505]
[1722249648246,0.04631961,69817.0,69816.0,1.15910505]
[1722249648447,0.02384,69817.0,69816.0,1.15910505]
[1722249648848,0.02384,69817.0,69816.0,1.15910598]
[1722249649028,0.00084,69817.0,69816.0,1.15910599]
[1722249649230,0.02384,69817.0,69816.0,1.15910599]
[1722249649860,0.02384,69817.0,69816.0,1.02180599]
[1722249650257,0.02384,69817.0,69816.0,1.07080599]
[1722249650537,0.02384,69817.0,69816.0,1.29997899]
[1722249651284,0.04631977,69817.0,69816.0,1.29997899]
[1722249652221,0.04631977,69817.0,69816.0,1.18091831]
[1722249652445,0.04631977,69817.0,69816.0,1.29997899]
[1722249652602,0.02384,69817.0,69816.0,1.29997899]
[1722249655528,0.02384,69817.0,69816.0,1.29997717]
[1722249655751,0.04631977,69817.0,69816.0,1.29997717]
[1722249656743,0.02384,69817.0,69816.0,1.29997717]
[1722249658549,0.02384,69817.0,69816.0,1.18091831]
[1722249658755,0.02384,69817.0,69816.0,1.29997717]
[1722249661477,0.02384,69817.0,69816.0,1.68205314]
[1722249661825,0.02384,69817.0,69816.0,1.36413306]
[1722249662042,0.02384,69817.0,69816.0,1.29997067]
[1722249662523,0.02384,69817.0,69816.0,1.34274773]
[1722249663136,0.02384,69817.0,69816.0,1.29997067]
[1722249663315,0.02384,69817.0,69816.0,1.34274655]
[1722249663517,0.02384,69817.0,69816.0,1.07079767]
[1722249663884,0.02331977,69817.0,69816.0,1.29997067]
[1722249664086,0.02331977,69817.0,69816.0,1.18091831]
[1722249664087,0.04631977,69817.0,69816.0,1.18091831]
[1722249664333,0.04631977,69817.0,69816.0,1.21550325]
[1722249664779,0.04631977,69817.0,69816.0,1.44467625]
[1722249665320,0.02384,69817.0,69816.0,1.48745411]
[1722249665897,0.02384,69817.0,69816.0,1.44467625]
[1722249666250,0.02384,69817.0,69816.0,1.50884304]
[1722249666478,0.02384,69817.0,69816.0,1.44467625]
[1722249666658,0.02384,69817.0,69816.0,1.48745854]
[1722249666837,0.02384,69817.0,69816.0,1.44467625]
[1722249667262,0.02384,69817.0,69816.0,1.09644531]
[1722249667600,0.02384,69817.0,69816.0,1.48745685]
[1722249667797,0.00084,69817.0,69816.0,1.44467395]
[1722249668416,0.00084,69817.0,69816.0,1.32561831]
[1722249668590,0.00084,69817.0,69816.0,1.44467222]
[1722249668796,0.02331941,69817.0,69816.0,1.44467222]
[1722249669003,0.00084,69817.0,69816.0,1.44467222]
[1722249670013,0.00084,69817.0,69816.0,1.36839512]
[1722249671116,0.00084,69817.0,69816.0,1.22369512]
[1722249671856,0.00084,69817.0,69816.0,1.34275073]
[1722249672040,0.00084,69817.0,69816.0,1.29997392]
[1722249672264,0.02331941,69817.0,69816.0,1.29997392]
[1722249672606,0.02331941,69817.0,69816.0,1.02180092]
[1722249672811,0.16531941,69817.0,69816.0,1.02180092]
[1722249673006,0.16584,69817.0,69816.0,1.02180092]
[1722249674701,0.02384,69817.0,69816.0,1.02180092]
[1722249674903,0.02384,69817.0,69816.0,1.02180573]
[1722249676526,0.04631977,69817.0,69816.0,1.02180573]
[1722249679145,0.04631977,69817.0,69816.0,1.02180063]
[1722249679646,0.04631977,69817.0,69816.0,1.02180159]
[1722249682787,0.04631977,69817.0,69816.0,1.25097459]
[1722249682997,0.04631977,69817.0,69816.0,1.29377954]
[1722249683191,0.04631977,69817.0,69816.0,0.52295254]
[1722249683394,0.04631977,69817.0,69816.0,0.59473359]
[1722249684147,0.04631977,69817.0,69816.0,0.88120359]
[1722249684936,0.04631977,69817.0,69816.0,0.89524247]
[1722249686044,0.04631977,69817.0,69816.0,0.87344088]
[1722249686254,0.02384,69817.0,69816.0,0.87344088]
[1722249686857,0.02384,69817.0,69816.0,0.95624088]
[1722249687053,0.00084,69817.0,69816.0,0.95624088]
[1722249687232,0.02384,69817.0,69816.0,0.95624088]
[1722249687446,0.02384,69817.0,69816.0,0.72706788]
[1722249687651,0.02384,69817.0,69816.0,0.64426788]
[1722249688072,0.02384,69817.0,69816.0,0.87344088]
[1722249688278,0.02384,69817.0,69816.0,0.64426788]
[1722249688481,0.02384,69817.0,69816.0,0.87344088]
[1722249689291,0.25394,69817.0,69816.0,0.30050888]
[1722249689543,0.25394,69817.0,69793.0,0.0428173]
[1722249689544,0.1463,69799.0,69793.0,0.0428173]
[1722249689877,0.1463,69799.0,69792.0,0.049]
[1722249690010,0.00647683,69798.0,69796.0,0.114618]
[1722249690194,0.1463,69797.0,69792.0,0.01361893]
[1722249690402,0.1463,69797.0,69793.0,0.229249]
[1722249690596,0.02946724,69796.0,69793.0,0.229249]
[1722249690850,0.02946724,69796.0,69795.0,0.114621]
[1722249691053,0.02946724,69796.0,69795.0,0.343863]
[1722249691193,0.02946724,69796.0,69795.0,0.573105]
[1722249691400,0.023,69796.0,69795.0,0.573105]
[1722249691595,0.023,69796.0,69795.0,0.343863]
[1722249693019,0.05195441,69796.0,69795.0,0.343863]
[1722249693255,0.05295441,69796.0,69795.0,0.356863]
[1722249694058,0.03357437,69796.0,69795.0,0.356863]
[1722249694564,0.03457437,69796.0,69795.0,0.370863]
[1722249696615,0.03457437,69796.0,69795.0,0.256242]
[1722249696980,0.03457437,69796.0,69795.0,0.370863]
[1722249697498,0.05706156,69796.0,69795.0,0.370863]
[1722249697696,0.03457437,69796.0,69795.0,0.370863]
[1722249698297,0.03457437,69796.0,69795.0,0.027]
[1722249698739,0.03457437,69796.0,69795.0,0.141621]
[1722249700114,0.03457437,69796.0,69795.0,0.027]
[1722249700740,0.025,69796.0,69795.0,0.027]
[1722249700950,0.20045846,69796.0,69795.0,0.027]
[1722249704979,0.20045846,69796.0,69795.0,0.027924]
[1722249705883,0.19088735,69796.0,69795.0,0.027924]
[1722249706098,0.20039846,69796.0,69795.0,0.027924]
[1722249706913,0.03399846,69796.0,69795.0,0.142545]
[1722249707115,0.01151111,69796.0,69795.0,0.601029]
[1722249707518,0.002,69796.0,69795.0,0.601029]
[1722249708779,0.001,69796.0,69795.0,0.587029]
[1722249709433,0.001,69796.0,69795.0,0.588029]
[1722249709569,0.001,69800.0,69799.0,0.114614]
[1722249709778,0.001,69800.0,69799.0,0.113614]
[1722249710026,0.001,69800.0,69799.0,0.112614]
[1722249710624,0.0234871,69800.0,69799.0,0.111614]
[1722249710961,0.0464871,69800.0,69799.0,0.340843]
[1722249711175,0.0454871,69800.0,69799.0,0.340843]
[1722249711502,0.023,69800.0,69799.0,0.340843]
[1722249711703,0.024,69801.0,69800.0,0.114613]
[1722249712586,0.024,69801.0,69799.0,0.128614]
[1722249712587,0.001,69800.0,69799.0,0.128614]
[1722249712790,0.001,69800.0,69799.0,0.114614]
[1722249713077,0.001,69800.0,69799.0,0.127614]
[1722249714551,0.0234871,69800.0,69799.0,0.127614]
[1722249714835,0.0464871,69800.0,69799.0,0.127614]
[1722249715303,0.0464871,69800.0,69799.0,0.141614]
[1722249716013,0.024,69800.0,69799.0,0.141614]
[1722249716210,0.001,69800.0,69799.0,0.141614]
[1722249717333,0.001,69800.0,69799.0,0.027]
[1722249718256,0.001,69800.0,69799.0,0.141614]
[1722249718597,0.001,69800.0,69799.0,0.027]
[1722249718811,0.02348712,69800.0,69799.0,0.027]
[1722249719154,0.2007697,69800.0,69799.0,0.027]
[1722249724796,0.17828258,69800.0,69799.0,0.027]
[1722249725318,0.03078258,69800.0,69799.0,0.027]
[1722249725441,0.00778258,69800.0,69799.0,0.453643]
[1722249725640,0.00778258,69800.0,69799.0,0.80196268]
[1722249725862,0.001,69807.0,69806.0,0.343809]
[1722249726075,0.00875378,69807.0,69806.0,0.655815]
[1722249726269,0.001,69811.0,69810.0,0.114596]
[1722249726530,0.001,69811.0,69810.0,0.343789]
[1722249726737,0.00878573,69811.0,69810.0,0.343789]
[1722249727116,0.001,69811.0,69810.0,0.343789]
[1722249727316,0.14494,69816.0,69812.0,0.114593]
[1722249727317,0.001,69813.0,69812.0,0.114593]
[1722249727646,0.001,69813.0,69812.0,0.426579]
[1722249728157,0.02348308,69813.0,69812.0,0.426579]
[1722249728538,0.024,69813.0,69812.0,0.426579]
[1722249728738,0.001,69813.0,69812.0,0.426579]
[1722249728975,0.001,69814.0,69813.0,0.343774]
[1722249729182,0.0088537,69814.0,69813.0,0.343774]
[1722249729395,0.024,69814.0,69813.0,0.343774]
[1722249729546,0.05433626,69814.0,69813.0,0.343774]
[1722249729951,0.05333626,69814.0,69813.0,0.572957]
[1722249730132,0.04548256,69814.0,69813.0,0.655757]
[1722249730334,0.04548256,69814.0,69813.0,0.572957]
[1722249731187,0.04548256,69814.0,69813.0,0.357774]
[1722249731586,0.05332826,69814.0,69813.0,0.357774]
[1722249732391,0.05332826,69814.0,69813.0,0.371774]
[1722249732569,0.03032826,69814.0,69813.0,0.371774]
[1722249733755,0.03032826,69814.0,69813.0,0.600957]
[1722249733958,0.001,69815.0,69814.0,0.34377]
[1722249734748,0.00084,69816.0,69815.0,0.343765]
[1722249734947,0.00870166,69816.0,69815.0,0.343765]
[1722249735160,0.02384,69816.0,69815.0,0.343765]
[1722249735348,0.02484,69816.0,69815.0,0.343765]
[1722249735549,0.00084,69816.0,69815.0,0.572942]
[1722249737215,0.02332063,69816.0,69815.0,0.572942]
[1722249738274,0.0625,69815.0,69814.0,0.013]
[1722249738494,0.25140929,69815.0,69814.0,0.013]
[1722249738693,0.30140929,69815.0,69814.0,0.013]
[1722249738893,0.35733657,69815.0,69814.0,0.013]
[1722249739155,0.27642216,69815.0,69814.0,0.013]
[1722249739285,0.30733657,69815.0,69814.0,0.027]
[1722249739487,0.30733657,69815.0,69814.0,0.014]
[1722249739713,0.25140929,69815.0,69814.0,0.014]
[1722249741489,0.27389406,69815.0,69814.0,0.014]
[1722249741840,0.25140929,69815.0,69814.0,0.014]
[1722249742240,0.1433,69814.0,69802.0,0.114609]
[1722249742441,0.0828,69805.0,69802.0,0.114609]
[1722249742642,0.0856,69804.0,69802.0,0.114609]
[1722249742844,0.001,69802.0,69799.0,0.115537]
[1722249743073,0.001,69800.0,69799.0,0.000924]
[1722249743493,0.00884088,69800.0,69799.0,0.000924]
[1722249743670,0.03184088,69800.0,69799.0,0.000924]
[1722249744250,0.03184088,69800.0,69799.0,0.014924]
[1722249744655,0.05432746,69800.0,69799.0,0.014924]
[1722249745471,0.05432746,69800.0,69799.0,0.000924]
[1722249745914,0.05432746,69800.0,69799.0,0.014924]
[1722249746077,0.05332746,69800.0,69799.0,0.014924]
[1722249746277,0.05432746,69800.0,69799.0,0.014924]
[1722249747233,0.05432746,69800.0,69799.0,0.028924]
[1722249751901,0.19802746,69800.0,69799.0,0.028924]
[1722249754347,0.19802746,69800.0,69799.0,0.014924]
[1722249755172,0.17554088,69800.0,69799.0,0.014924]
[1722249755549,0.17554088,69800.0,69799.0,0.028924]
[1722249755762,0.17554088,69800.0,69799.0,0.014924]
[1722249756102,0.17554088,69800.0,69799.0,0.027924]
[1722249757343,0.17554088,69800.0,69799.0,0.013924]
[1722249757535,0.17554088,69800.0,69799.0,0.000924]
[1722249757756,0.17554088,69800.0,69799.0,0.009924]
[1722249757914,0.17554088,69800.0,69799.0,0.016924]
[1722249758116,0.17554088,69800.0,69799.0,0.007924]
[1722249758373,0.19802851,69800.0,69799.0,0.007924]
[1722249758524,0.19802851,69800.0,69799.0,0.016924]
[1722249758731,0.17554088,69800.0,69799.0,0.016924]
[1722249761170,0.17554088,69800.0,69789.0,0.000924]
[1722249761171,0.620688,69790.0,69789.0,0.000924]
[1722249761375,1.27269055,69790.0,69789.0,0.000924]
[1722249761489,1.3377071,69790.0,69789.0,0.000924]
[1722249761690,1.1314481,69790.0,69789.0,0.000924]
[1722249762344,1.19579973,69790.0,69789.0,0.000924]
[1722249762549,1.42505873,69790.0,69789.0,0.000924]
[1722249762717,1.3607071,69790.0,69789.0,0.000924]
[1722249762940,1.50880649,69790.0,69789.0,0.001924]
[1722249763252,1.32556627,69790.0,69789.0,0.001924]
[1722249763452,0.99630727,69790.0,69789.0,0.001924]
[1722249763676,1.09630727,69790.0,69789.0,0.001924]
[1722249763881,0.88167827,69790.0,69789.0,0.001924]
[1722249764091,1.09630727,69790.0,69789.0,0.001924]
[1722249764229,1.0429891,69790.0,69789.0,0.002924]